fUST/lending_fUST_20250524
["ID","MTS","AMOUNT","RATE_DAILY","PERIOD"]
[362200506,1748088642384,-430.0,0.00021917,3]
[362200507,1748088642394,-430.0,0.00021917,3]
[362200508,1748088642403,-547.48,0.00021917,3]
[362200509,1748088642412,-430.0,0.00021917,3]
[362200510,1748088642421,-430.0,0.00021917,3]
[362200511,1748088642429,-373.49633004,0.00021917,3]
[362200512,1748088642439,-430.0,0.00021917,3]
[362200513,1748088642448,-430.0,0.00021917,3]
[362200514,1748088642458,-430.0,0.00021917,3]
[362200515,1748088642467,-541.93892162,0.00021917,3]
[362200516,1748088642477,-475.44,0.00021917,3]
[362200517,1748088642487,-390.0,0.00021917,3]
[362200518,1748088642496,-430.0,0.00021917,3]
[362200519,1748088642506,-430.0,0.00021917,3]
[362200520,1748088642515,-370.0,0.00021917,3]
[362200521,1748088642524,-430.0,0.00021917,3]
[362200522,1748088642534,-430.0,0.00021917,3]
[362200523,1748088642543,-1151.35,0.00021917,3]
[362200524,1748088642552,-430.0,0.00021917,3]
[362200525,1748088642562,-430.0,0.00021917,3]
[362200526,1748088642572,-430.0,0.00021917,3]
[362200527,1748088642581,-430.0,0.00021917,3]
[362200528,1748088642591,-430.0,0.00021917,3]
[362200529,1748088642600,-344.53332574,0.00021917,3]
[362200530,1748088642609,-430.0,0.00021917,3]
[362200531,1748088642619,-430.0,0.00021917,3]
[362200532,1748088642629,-290.0,0.00021917,3]
[362200533,1748088642638,-430.0,0.00021917,3]
[362200534,1748088642647,-1021.13,0.00021917,3]
[362200535,1748088642657,-430.0,0.00021917,3]
[362200536,1748088642666,-400.0,0.00021917,3]
[362200537,1748088642675,-530.05,0.00021917,3]
[362200538,1748088642685,-370.0,0.00021917,3]
[362200539,1748088642694,-260.0,0.00021917,3]
[362200540,1748088642704,-400.0,0.00021917,3]
[362200542,1748088642714,-430.0,0.00021917,3]
[362200544,1748088642724,-340.0,0.00021917,3]
[362200545,1748088642734,-430.0,0.00021917,3]
[362200546,1748088642743,-430.0,0.00021917,3]
[362200547,1748088642753,-1257.06,0.00021917,3]
[362200548,1748088642850,-430.0,0.00021917,3]
[362200549,1748088642861,-430.0,0.00021917,3]
[362200550,1748088642870,-430.0,0.00021917,3]
[362200551,1748088642880,-430.0,0.00021917,3]
[362200552,1748088642890,-400.0,0.00021917,3]
[362200553,1748088642899,-430.0,0.00021917,3]
[362200554,1748088642908,-430.0,0.00021917,3]
[362200555,1748088642918,-430.0,0.00021917,3]
[362200556,1748088642928,-430.0,0.00021917,3]
[362200557,1748088642938,-350.0,0.00021917,3]
[362200558,1748088642947,-430.0,0.00021917,3]
[362200559,1748088642958,-3562.52,0.00021917,2]
[362200560,1748088642967,-400.0,0.00021917,3]
[362200561,1748088642977,-3634.94,0.00021917,3]
[362200562,1748088642987,-430.0,0.00021917,3]
[362200563,1748088642998,-430.0,0.00021917,3]
[362200564,1748088643008,-430.0,0.00021917,3]
[362200565,1748088643018,-430.0,0.00021917,3]
[362200566,1748088643027,-430.0,0.00021917,3]
[362200567,1748088643037,-194.36615569,0.00021917,3]
[362200568,1748088643047,-430.0,0.00021917,3]
[362200569,1748088643059,-430.0,0.00021917,3]
[362200570,1748088643070,-430.0,0.00021917,3]
[362200571,1748088643080,-430.0,0.00021917,3]
[362200572,1748088643090,-1904.48,0.00021917,3]
[362200573,1748088643099,-1333.99,0.00021917,3]
[362200574,1748088643109,-759.54,0.00021917,3]
[362200575,1748088643119,-450.0,0.00021917,3]
[362200576,1748088643128,-430.0,0.00021917,3]
[362200577,1748088643137,-500.0,0.00021973,2]
[362200578,1748088643147,-500.0,0.00021973,2]
[362200579,1748088643156,-500.0,0.00021973,2]
[362200580,1748088643166,-500.0,0.00022076,2]
[362200581,1748088643175,-209.69237098,0.00022076,2]
[362200582,1748088643184,-500.0,0.00022076,2]
[362200583,1748088643194,-500.0,0.00022076,2]
[362200584,1748088643203,-500.0,0.00022076,2]
[362200585,1748088643212,-500.0,0.00022076,2]
[362200586,1748088643222,-341.58813354,0.0002216,2]
[362200587,1748088643232,-500.0,0.00022172,2]
[362200590,1748088643242,-500.98959904,0.00022172,2]
[362200591,1748088643251,-500.0,0.0002219,2]
[362200592,1748088643260,-500.0,0.0002219,2]
[362200593,1748088643269,-500.0,0.0002219,2]
[362200594,1748088643278,-500.0,0.0002219,2]
[362200595,1748088643287,-500.0,0.0002219,2]
[362200596,1748088643297,-500.0,0.0002219,2]
[362200597,1748088643307,-500.0,0.0002219,2]
[362200598,1748088643317,-500.0,0.0002219,2]
[362200599,1748088643327,-500.0,0.0002219,2]
[362200600,1748088643336,-500.0,0.0002219,2]
[362200601,1748088643347,-500.0,0.0002219,2]
[362200602,1748088643359,-500.0,0.0002219,2]
[362200603,1748088643370,-500.0,0.0002219,2]
[362200604,1748088643379,-283.30448426,0.0002219,2]
[362200605,1748088643388,-500.0,0.0002219,2]
[362200606,1748088643398,-500.0,0.0002219,2]
[362200607,1748088643407,-500.0,0.0002219,2]
[362200608,1748088643417,-500.0,0.0002219,2]
[362200609,1748088643426,-500.0,0.0002219,2]
[362200610,1748088643435,-500.0,0.0002219,2]
[362200611,1748088643445,-192.89953875,0.0002219,2]
[362200612,1748088643455,-500.0,0.0002219,2]
[362200613,1748088643464,-500.0,0.0002219,2]
[362200614,1748088643473,-500.0,0.0002219,2]
[362200615,1748088643483,-500.0,0.0002219,2]
[362200616,1748088643494,-500.0,0.0002219,2]
[362200617,1748088643504,-500.0,0.0002219,2]
[362200618,1748088643514,-500.0,0.0002219,2]
[362200619,1748088643525,-168.98020436,0.0002219,2]
[362200620,1748088643534,-500.0,0.0002219,2]
[362200621,1748088643544,-551.22186792,0.0002219,2]
[362200622,1748088643554,-500.0,0.0002219,2]
[362200623,1748088643564,-544.98545625,0.0002219,2]
[362200624,1748088643574,-79480.62408177,0.00022191,2]
[362200625,1748088643583,-3452.57966505,0.00022191,3]
[362200626,1748088643593,-430.0,0.00022191,3]
[362200627,1748088643602,-430.0,0.00022191,3]
[362200628,1748088643612,-458.28,0.00022191,3]
[362200629,1748088643621,-430.0,0.00022191,3]
[362200630,1748088643631,-430.0,0.00022191,3]
[362200631,1748088643641,-430.0,0.00022191,3]
[362200632,1748088643651,-430.0,0.00022191,3]
[362200633,1748088643660,-430.0,0.00022191,3]
[362200634,1748088643670,-322.95901695,0.00022191,3]
[362200635,1748088643679,-507.51910834,0.00022191,3]
[362200636,1748088643689,-430.0,0.00022191,3]
[362200637,1748088643699,-430.0,0.00022191,3]
[362200638,1748088643709,-416.45315895,0.00022191,3]
[362200639,1748088643718,-430.0,0.00022191,3]
[362200640,1748088643727,-430.0,0.00022191,3]
[362200641,1748088643737,-430.0,0.00022191,3]
[362200642,1748088643747,-430.1475328,0.00022191,3]
[362200643,1748088643757,-430.0,0.00022191,3]
[362200644,1748088643767,-430.0,0.00022191,3]
[362200645,1748088643776,-430.0,0.00022191,3]
[362200646,1748088643789,-430.0,0.00022191,3]
[362200647,1748088643798,-430.0,0.00022191,3]
[362200648,1748088643810,-430.0,0.00022191,3]
[362200649,1748088643820,-430.0,0.00022191,3]
[362200650,1748088643831,-430.0,0.00022191,3]
[362200651,1748088643841,-430.0,0.00022191,3]
[362200652,1748088643850,-430.0,0.00022191,3]
[362200653,1748088643860,-430.0,0.00022191,3]
[362200654,1748088643869,-430.0,0.00022191,3]
[362200655,1748088643878,-646.32,0.00022191,2]
[362200656,1748088643888,-430.0,0.00022191,3]
[362200657,1748088643898,-570.0,0.00022191,3]
[362200658,1748088643908,-430.0,0.00022191,3]
[362200659,1748088643918,-540.96,0.00022191,3]
[362200660,1748088643927,-430.0,0.00022191,3]
[362200661,1748088643938,-430.0,0.00022191,3]
[362200662,1748088643948,-465.28506817,0.00022191,3]
[362200663,1748088643957,-470.0,0.00022191,3]
[362200664,1748088643966,-365.0,0.00022191,3]
[362200665,1748088643976,-554.08782209,0.00022191,3]
[362200666,1748088643986,-430.0,0.00022191,3]
[362200667,1748088643996,-253.1954158,0.00022191,3]
[362200668,1748088644005,-470.0,0.00022191,3]
[362200669,1748088644015,-453.22463869,0.00022191,3]
[362200670,1748088644025,-370.0,0.00022191,3]
[362200671,1748088644035,-430.0,0.00022191,3]
[362200672,1748088644044,-430.0,0.00022191,3]
[362200673,1748088644054,-440.0,0.00022191,3]
[362200674,1748088644065,-290.0,0.00022191,3]
[362200675,1748088644074,-430.0,0.00022191,3]
[362200676,1748088644084,-430.0,0.00022191,3]
[362200677,1748088644094,-430.0,0.00022191,3]
[362200678,1748088644103,-430.0,0.00022191,3]
[362200679,1748088644113,-430.0,0.00022191,3]
[362200680,1748088644122,-430.0,0.00022191,3]
[362200681,1748088644132,-430.0,0.00022191,3]
[362200682,1748088644141,-430.0,0.00022191,3]
[362200683,1748088644151,-400.0,0.00022191,3]
[362200684,1748088644160,-430.0,0.00022191,3]
[362200685,1748088644170,-430.0,0.00022191,3]
[362200686,1748088644179,-451.84,0.00022191,3]
[362200687,1748088644189,-400.0,0.00022191,3]
[362200688,1748088644198,-400.0,0.00022191,3]
[362200689,1748088644208,-430.0,0.00022191,3]
[362200690,1748088644217,-430.0,0.00022191,3]
[362200691,1748088644227,-350.0,0.00022191,3]
[362200692,1748088644237,-350.0,0.00022191,3]
[362200693,1748088644246,-430.0,0.00022191,3]
[362200694,1748088644255,-430.0,0.00022191,3]
[362200695,1748088644265,-430.0,0.00022191,3]
[362200696,1748088644274,-400.0,0.00022191,3]
[362200697,1748088644283,-430.0,0.00022191,3]
[362200698,1748088644293,-400.0,0.00022191,3]
[362200699,1748088644302,-430.0,0.00022191,3]
[362200700,1748088644313,-430.0,0.00022191,3]
[362200701,1748088644322,-400.0,0.00022191,3]
[362200702,1748088644332,-430.0,0.00022191,3]
[362200703,1748088644342,-370.0,0.00022191,3]
[362200704,1748088644351,-531.31061919,0.00022191,3]
[362200705,1748088644361,-430.0,0.00022191,3]
[362200706,1748088644370,-430.0,0.00022191,3]
[362200707,1748088644380,-430.0,0.00022191,3]
[362200708,1748088644389,-430.0,0.00022191,3]
[362200709,1748088644399,-448.78830593,0.00022191,3]
[362200710,1748088644408,-430.0,0.00022191,3]
[362200711,1748088644418,-430.0,0.00022191,3]
[362200712,1748088644428,-510.19861097,0.00022191,3]
[362200713,1748088644437,-430.0,0.00022191,3]
[362200714,1748088644447,-243.20797149,0.00022191,3]
[362200715,1748088644456,-430.0,0.00022191,3]
[362200716,1748088644466,-430.0,0.00022191,3]
[362200717,1748088644475,-430.0,0.00022191,3]
[362200718,1748088644484,-430.0,0.00022191,3]
[362200719,1748088644493,-430.0,0.00022191,3]
[362200720,1748088644503,-430.0,0.00022191,3]
[362200721,1748088644512,-430.0,0.00022191,3]
[362200722,1748088644521,-430.0,0.00022191,3]
[362200723,1748088644530,-430.0,0.00022191,3]
[362200724,1748088644539,-430.0,0.00022191,3]
[362200725,1748088644549,-430.0,0.00022191,3]
[362200726,1748088644559,-430.0,0.00022191,3]
[362200727,1748088644568,-430.0,0.00022191,3]
[362200728,1748088644578,-430.0,0.00022191,3]
[362200729,1748088644587,-430.0,0.00022191,3]
[362200730,1748088644596,-430.0,0.00022191,3]
[362200731,1748088644606,-389.83367174,0.00022191,3]
[362200732,1748088644615,-430.0,0.00022191,3]
[362200733,1748088644625,-430.0,0.00022191,3]
[362200734,1748088644635,-430.0,0.00022191,3]
[362200735,1748088644644,-450.0,0.00022191,3]
[362200736,1748088644653,-430.0,0.00022191,3]
[362200737,1748088644662,-457.60881042,0.00022191,3]
[362200738,1748088644672,-430.0,0.00022191,3]
[362200739,1748088644681,-430.0,0.00022191,3]
[362200740,1748088644779,-350.0,0.00022191,3]
[362200741,1748088644793,-250.0,0.00022191,3]
[362200742,1748088644803,-430.0,0.00022191,3]
[362200743,1748088644814,-430.0,0.00022191,3]
[362200744,1748088644824,-357.03609032,0.00022191,3]
[362200745,1748088644834,-430.0,0.00022191,3]
[362200746,1748088644843,-457.1625648,0.00022191,3]
[362200747,1748088644853,-430.0,0.00022191,3]
[362200748,1748088644863,-430.0,0.00022191,3]
[362200749,1748088644872,-430.0,0.00022191,3]
[362200750,1748088644882,-356.47053305,0.00022191,3]
[362200751,1748088644892,-340.0,0.00022191,3]
[362200752,1748088644901,-430.0,0.00022191,3]
[362200753,1748088644911,-430.0,0.00022191,3]
[362200754,1748088644920,-544.80779855,0.00022191,3]
[362200755,1748088644930,-430.0,0.00022191,3]
[362200756,1748088644939,-430.0,0.00022191,3]
[362200757,1748088644949,-430.0,0.00022191,3]
[362200758,1748088644959,-430.0,0.00022191,3]
[362200759,1748088644968,-2091.1,0.00022191,3]
[362200760,1748088644977,-780.59,0.00022191,3]
[362200761,1748088644987,-435.24,0.00022191,3]
[362200762,1748088644996,-430.0,0.00022191,3]
[362200763,1748088645006,-430.0,0.00022191,3]
[362200764,1748088645016,-430.0,0.00022191,3]
[362200765,1748088645025,-430.0,0.00022191,3]
[362200766,1748088645034,-1304.95,0.00022191,3]
[362200767,1748088645043,-430.0,0.00022191,3]
[362200768,1748088645052,-430.0,0.00022191,3]
[362200769,1748088645062,-430.0,0.00022191,3]
[362200770,1748088645071,-1008.46,0.00022191,3]
[362200771,1748088645080,-430.0,0.00022191,3]
[362200772,1748088645090,-2284.64,0.00022191,3]
[362200773,1748088645099,-430.0,0.00022191,3]
[362200774,1748088645109,-430.0,0.00022191,3]
[362200775,1748088645119,-430.0,0.00022191,3]
[362200776,1748088645128,-430.0,0.00022191,3]
[362200777,1748088645138,-657.72,0.00022191,3]
[362200778,1748088645148,-430.0,0.00022191,3]
[362200779,1748088645157,-430.0,0.00022191,3]
[362200780,1748088645166,-430.0,0.00022191,3]
[362200781,1748088645175,-642.64,0.00022191,3]
[362200782,1748088645185,-450.0,0.00022191,3]
[362200783,1748088645194,-420.0,0.00022191,3]
[362200784,1748088645204,-420.0,0.00022191,3]
[362200785,1748088645213,-430.0,0.00022191,3]
[362200786,1748088645222,-430.0,0.00022191,3]
[362200787,1748088645232,-430.0,0.00022191,3]
[362200788,1748088645243,-606.62,0.00022191,3]
[362200789,1748088645252,-430.0,0.00022191,3]
[362200790,1748088645263,-420.0,0.00022191,3]
[362200791,1748088645272,-430.0,0.00022191,3]
[362200792,1748088645281,-430.0,0.00022191,3]
[362200793,1748088645290,-430.0,0.00022191,3]
[362200794,1748088645299,-430.0,0.00022191,3]
[362200795,1748088645309,-430.0,0.00022191,3]
[362200796,1748088645319,-430.0,0.00022191,3]
[362200797,1748088645328,-430.0,0.00022191,3]
[362200798,1748088645336,-3068.33,0.00022191,3]
[362200799,1748088645345,-430.0,0.00022191,3]
[362200800,1748088645355,-430.0,0.00022191,3]
[362200801,1748088645364,-430.0,0.00022191,3]
[362200802,1748088645373,-430.0,0.00022191,3]
[362200803,1748088645382,-430.0,0.00022191,3]
[362200804,1748088645392,-430.0,0.00022191,3]
[362200805,1748088645401,-430.0,0.00022191,3]
[362200806,1748088645410,-430.0,0.00022191,3]
[362200807,1748088645420,-430.0,0.00022191,3]
[362200808,1748088645429,-484.72,0.00022191,3]
[362200809,1748088645438,-430.0,0.00022191,3]
[362200810,1748088645448,-430.0,0.00022191,3]
[362200811,1748088645457,-430.0,0.00022191,3]
[362200812,1748088645467,-430.0,0.00022191,3]
[362200813,1748088645476,-430.0,0.00022191,3]
[362200814,1748088645486,-430.0,0.00022191,3]
[362200815,1748088645495,-430.0,0.00022191,3]
[362200816,1748088645505,-430.0,0.00022191,3]
[362200817,1748088645515,-371.07275033,0.00022191,3]
[362200818,1748088645525,-430.0,0.00022191,3]
[362200819,1748088645535,-430.0,0.00022191,3]
[362200820,1748088645545,-320.0,0.00022191,3]
[362200821,1748088645555,-430.0,0.00022191,3]
[362200822,1748088645565,-430.0,0.00022191,3]
[362200823,1748088645575,-604.75,0.00022191,3]
[362200824,1748088645585,-430.0,0.00022191,3]
[362200825,1748088645594,-300.0,0.00022191,3]
[362200826,1748088645603,-344.47158068,0.00022191,3]
[362200827,1748088645613,-430.0,0.00022191,3]
[362200828,1748088645623,-430.0,0.00022191,3]
[362200829,1748088645632,-547.48,0.00022191,3]
[362200830,1748088645641,-430.0,0.00022191,3]
[362200831,1748088645650,-430.0,0.00022191,3]
[362200832,1748088645659,-430.0,0.00022191,3]
[362200833,1748088645669,-430.0,0.00022191,3]
[362200834,1748088645678,-475.44,0.00022191,3]
[362200835,1748088645689,-430.0,0.00022191,3]
[362200836,1748088645698,-430.0,0.00022191,3]
[362200837,1748088645707,-430.0,0.00022191,3]
[362200838,1748088645717,-1151.35,0.00022191,3]
[362200839,1748088645727,-430.0,0.00022191,3]
[362200840,1748088645736,-430.0,0.00022191,3]
[362200841,1748088645746,-430.0,0.00022191,3]
[362200842,1748088645755,-430.0,0.00022191,3]
[362200843,1748088645764,-430.0,0.00022191,3]
[362200844,1748088645773,-1021.13,0.00022191,3]
[362200845,1748088645783,-530.05,0.00022191,3]
[362200846,1748088645795,-1257.06,0.00022191,3]
[362200847,1748088645805,-430.0,0.00022191,3]
[362200848,1748088645816,-430.0,0.00022191,3]
[362200849,1748088645826,-430.0,0.00022191,3]
[362200850,1748088645835,-430.0,0.00022191,3]
[362200851,1748088645844,-430.0,0.00022191,3]
[362200852,1748088645854,-3634.94,0.00022191,3]
[362200853,1748088645864,-430.0,0.00022191,3]
[362200854,1748088645874,-430.0,0.00022191,3]
[362200855,1748088645884,-430.0,0.00022191,3]
[362200856,1748088645893,-430.0,0.00022191,3]
[362200858,1748088645903,-430.0,0.00022191,3]
[362200859,1748088645913,-1904.48,0.00022191,3]
[362200860,1748088645922,-1333.99,0.00022191,3]
[362200861,1748088645932,-759.54,0.00022191,3]
[362200862,1748088645942,-229.12393663,0.00022242,2]
[362200863,1748088645952,-422.929492,0.00022249,2]
[362200864,1748088645961,-12649.97184255,0.00022249,2]
[362200865,1748088645971,-894.64583333,0.00022249,2]
[362200866,1748088645980,-160.0,0.00022249,2]
[362200867,1748088645990,-500.0,0.00022265,2]
[362200869,1748088645999,-500.0,0.00022268,2]
[362200870,1748088646009,-500.0,0.00022268,2]
[362200872,1748088646018,-500.0,0.00022291,2]
[362200873,1748088646028,-500.0,0.00022291,2]
[362200874,1748088646039,-500.0,0.00022291,2]
[362200875,1748088646049,-500.0,0.00022291,2]
[362200876,1748088646058,-511.69255546,0.00022291,2]
[362200877,1748088646067,-500.0,0.00022296,2]
[362200878,1748088646076,-500.0,0.00022307,2]
[362200879,1748088646086,-500.0,0.00022307,2]
[362200880,1748088646095,-222.2949495,0.00022329,7]
[362200881,1748088646105,-455.24368312,0.00022348,2]
[362200882,1748088646116,-207.4,0.0002244,2]
[362200883,1748088646126,-500.0,0.00022464,2]
[362200884,1748088646135,-430.0,0.00022465,3]
[362200885,1748088646144,-430.0,0.00022465,3]
[362200886,1748088646154,-430.0,0.00022465,3]
[362200887,1748088646162,-430.0,0.00022465,3]
[362200888,1748088646171,-430.0,0.00022465,3]
[362200889,1748088646181,-350.0,0.00022465,3]
[362200890,1748088646190,-511.12658918,0.00022465,3]
[362200891,1748088646200,-430.0,0.00022465,3]
[362200892,1748088646209,-430.0,0.00022465,3]
[362200893,1748088646218,-555.32,0.00022465,3]
[362200894,1748088646227,-430.0,0.00022465,3]
[362200895,1748088646237,-646.32,0.00022465,2]
[362200896,1748088646246,-540.96,0.00022465,3]
[362200897,1748088646256,-430.0,0.00022465,3]
[362200898,1748088646266,-430.0,0.00022465,3]
[362200899,1748088646276,-430.0,0.00022465,3]
[362200900,1748088646285,-430.0,0.00022465,3]
[362200901,1748088646294,-430.0,0.00022465,3]
[362200902,1748088646303,-430.0,0.00022465,3]
[362200903,1748088646314,-430.0,0.00022465,3]
[362200904,1748088646323,-430.0,0.00022465,3]
[362200905,1748088646332,-290.0,0.00022465,3]
[362200906,1748088646342,-350.0,0.00022465,3]
[362200907,1748088646351,-342.14312672,0.00022465,3]
[362200908,1748088646361,-430.0,0.00022465,3]
[362200910,1748088646371,-430.0,0.00022465,3]
[362200912,1748088646380,-421.22707809,0.00022465,3]
[362200913,1748088646390,-451.84,0.00022465,3]
[362200914,1748088646400,-293.55,0.00022465,3]
[362200915,1748088646409,-407.69743656,0.00022465,3]
[362200916,1748088646419,-400.0,0.00022465,3]
[362200917,1748088646428,-430.0,0.00022465,3]
[362200918,1748088646438,-430.0,0.00022465,3]
[362200919,1748088646521,-430.0,0.00022465,3]
[362200920,1748088646541,-400.0,0.00022465,3]
[362200921,1748088646550,-430.0,0.00022465,3]
[362200922,1748088646560,-544.68687416,0.00022465,3]
[362200923,1748088646569,-430.0,0.00022465,3]
[362200924,1748088646579,-430.0,0.00022465,3]
[362200925,1748088646589,-430.0,0.00022465,3]
[362200926,1748088646599,-430.0,0.00022465,3]
[362200927,1748088646608,-430.0,0.00022465,3]
[362200928,1748088646619,-430.0,0.00022465,3]
[362200929,1748088646629,-430.0,0.00022465,3]
[362200930,1748088646638,-400.0,0.00022465,3]
[362200931,1748088646648,-430.0,0.00022465,3]
[362200932,1748088646659,-430.0,0.00022465,3]
[362200933,1748088646668,-430.0,0.00022465,3]
[362200934,1748088646678,-430.0,0.00022465,3]
[362200935,1748088646687,-430.0,0.00022465,3]
[362200936,1748088646697,-430.0,0.00022465,3]
[362200937,1748088646705,-430.0,0.00022465,3]
[362200938,1748088646715,-430.0,0.00022465,3]
[362200939,1748088646724,-430.0,0.00022465,3]
[362200940,1748088646733,-430.0,0.00022465,3]
[362200941,1748088646742,-430.0,0.00022465,3]
[362200942,1748088646751,-430.0,0.00022465,3]
[362200943,1748088646760,-430.0,0.00022465,3]
[362200944,1748088646769,-432.92384644,0.00022465,3]
[362200945,1748088646779,-430.0,0.00022465,3]
[362200946,1748088646791,-430.0,0.00022465,3]
[362200947,1748088646800,-430.0,0.00022465,3]
[362200948,1748088646810,-2091.1,0.00022465,3]
[362200949,1748088646821,-780.59,0.00022465,3]
[362200950,1748088646831,-435.24,0.00022465,3]
[362200951,1748088646841,-430.0,0.00022465,3]
[362200952,1748088646851,-430.0,0.00022465,3]
[362200953,1748088646861,-1304.95,0.00022465,3]
[362200954,1748088646871,-430.0,0.00022465,3]
[362200955,1748088646880,-1008.46,0.00022465,3]
[362200956,1748088646889,-430.0,0.00022465,3]
[362200957,1748088646899,-2284.64,0.00022465,3]
[362200958,1748088646908,-430.0,0.00022465,3]
[362200959,1748088646917,-430.0,0.00022465,3]
[362200960,1748088646926,-657.72,0.00022465,3]
[362200961,1748088646936,-430.0,0.00022465,3]
[362200962,1748088646945,-430.0,0.00022465,3]
[362200963,1748088646954,-642.64,0.00022465,3]
[362200964,1748088646964,-430.0,0.00022465,3]
[362200965,1748088646973,-606.62,0.00022465,3]
[362200966,1748088646983,-540.0,0.00022465,3]
[362200967,1748088646992,-430.0,0.00022465,3]
[362200968,1748088647001,-173.09082452,0.00022465,3]
[362200969,1748088647011,-430.0,0.00022465,3]
[362200970,1748088647021,-455.94947969,0.00022465,3]
[362200971,1748088647030,-3068.33,0.00022465,3]
[362200972,1748088647040,-430.0,0.00022465,3]
[362200973,1748088647051,-430.0,0.00022465,3]
[362200974,1748088647063,-227.74079175,0.00022465,3]
[362200975,1748088647072,-430.0,0.00022465,3]
[362200976,1748088647081,-430.0,0.00022465,3]
[362200977,1748088647090,-430.0,0.00022465,3]
[362200978,1748088647099,-430.0,0.00022465,3]
[362200979,1748088647109,-484.72,0.00022465,3]
[362200980,1748088647119,-430.0,0.00022465,3]
[362200981,1748088647128,-430.0,0.00022465,3]
[362200982,1748088647139,-430.0,0.00022465,3]
[362200983,1748088647148,-430.0,0.00022465,3]
[362200984,1748088647159,-430.0,0.00022465,3]
[362200985,1748088647169,-430.0,0.00022465,3]
[362200986,1748088647179,-430.0,0.00022465,3]
[362200987,1748088647188,-430.0,0.00022465,3]
[362200988,1748088647197,-356.54173381,0.00022465,3]
[362200989,1748088647206,-604.75,0.00022465,3]
[362200990,1748088647216,-430.0,0.00022465,3]
[362200991,1748088647225,-430.0,0.00022465,3]
[362200992,1748088647236,-430.0,0.00022465,3]
[362200993,1748088647246,-547.48,0.00022465,3]
[362200994,1748088647255,-430.0,0.00022465,3]
[362200995,1748088647264,-430.0,0.00022465,3]
[362200996,1748088647273,-346.64266024,0.00022465,3]
[362200997,1748088647282,-475.44,0.00022465,3]
[362200998,1748088647291,-430.0,0.00022465,3]
[362200999,1748088647300,-430.0,0.00022465,3]
[362201000,1748088647309,-1151.35,0.00022465,3]
[362201001,1748088647320,-430.0,0.00022465,3]
[362201002,1748088647329,-430.0,0.00022465,3]
[362201003,1748088647338,-430.0,0.00022465,3]
[362201004,1748088647347,-1021.13,0.00022465,3]
[362201005,1748088647357,-530.05,0.00022465,3]
[362201006,1748088647366,-1257.06,0.00022465,3]
[362201007,1748088647376,-430.0,0.00022465,3]
[362201008,1748088647385,-430.0,0.00022465,3]
[362201009,1748088647395,-430.0,0.00022465,3]
[362201010,1748088647403,-430.0,0.00022465,3]
[362201011,1748088647413,-430.0,0.00022465,3]
[362201012,1748088647422,-3634.94,0.00022465,3]
[362201013,1748088647431,-430.0,0.00022465,3]
[362201014,1748088647441,-430.0,0.00022465,3]